[Event "WCCC U10 2019"]
[Site "Weifang"]
[Date "2019.08.27"]
[Round "6.3"]
[White "Ilamparthi A R"]
[Black "Zhang, Xican"]
[Result "1-0"]
[ECO "C00"]
[WhiteElo "1984"]
[BlackElo "1708"]
[Annotator "NA RC"]
[PlyCount "51"]
[EventDate "2019.08.21"]
[EventType "swiss"]
[EventCountry "CHN"]
[SourceTitle "playchess.com"]
[Source "ChessBase"]
[SourceQuality "1"]
[TimeControl "40/5400+30:1800+30"]

{[%evp 8,34,20,-15,0,32767,32767,32767,32767,-17,0,-25,-13,-41,-35,-45,-16,-8,-8,-35,45,52,55,43,32767,32767,32767,0,123]} 1. Nf3 {[%emt 0:00:00]} d5 {[%emt 0:00:00]} 2. g3 {[%emt 0:00:00]} Nf6 {[%emt 0:00:12]} 3. Bg2 {[%emt 0:01:07]} c5 {[%emt 0:01:05]} 4. O-O {[%emt 0:00:11]} Nc6 {[%emt 0:02:12]} 5. d3 {[%emt 0:00:08]} e6 {[%emt 0:01:18]} 6. Nbd2 {[%emt 0:00:13]} Be7 {[%emt 0:00:16]} 7. e4 {[%emt 0:00:41]} O-O {[%emt 0:01:20]} 8. Re1 {[%emt 0:00:29]} b6 {[%emt 0:02:36]} 9. e5 {[%emt 0:00:35]} Nd7 {[%emt 0:00:23]} 10. Nf1 {[%emt 0:00:05]} Bb7 {[%emt 0:02:02]} 11. h4 {[%emt 0:01:26]} Rc8 {[%emt 0:04:35]} 12. N1h2 {[%emt 0:01:00]} b5 {[%emt 0:03:02]} 13. Bf4 {[%emt 0:01:23]} c4 {[%emt 0:03:46]} 14. d4 {[%emt 0:02:09]} a5 {[%emt 0:01:21]} 15. Bh3 {[%emt 0:05:07]} Na7 {[%emt 0:06:28]} 16. Kg2 {[%emt 0:02:51]} b4 {[%emt 0:01:09]} 17. Ng5 {[%emt 0:20:25]} h6 $16 {[%emt 0:12:09]} (17... Nb5 $11 {remains equal.}) 18. Qh5 {[%emt 0:08:14]} hxg5 {[%emt 0:01:10]} 19. hxg5 {[%emt 0:00:16]} Re8 {[%emt 0:04:37]} 20. g6 {[%emt 0:00:21]} Bh4 {[%emt 0:04:00]} 21. Qh7+ {[%emt 0:00:58]} Kf8 {[%emt 0:00:03]} 22. Qh8+ {[%emt 0:00:05]} Ke7 {[%emt 0:00:03]} 23. Qxh4+ {[%emt 0:00:06]} f6 {[%emt 0:00:31]} 24. exf6+ {[%emt 0:00:06]} Nxf6 {[%emt 0:00:15]} 25. Rxe6+ {[%emt 0:00:04]} Kd7 {[%emt 0:00:09]} 26. Rxf6+ {[%emt 0:00:25]} 1-0

[Event "WCCC U10 2019"]
[Site "Weifang"]
[Date "2019.08.27"]
[Round "6.4"]
[White "Kong, Xiangrui"]
[Black "Xiong, Junyi"]
[Result "1/2-1/2"]
[ECO "C02"]
[WhiteElo "1889"]
[BlackElo "1440"]
[Annotator "NA"]
[PlyCount "126"]
[EventDate "2019.08.21"]
[EventType "swiss"]
[EventCountry "CHN"]
[SourceTitle "playchess.com"]
[Source "ChessBase"]
[SourceQuality "1"]
[TimeControl "40/5400+30:1800+30"]

1. e4 {[%emt 0:00:00]} e6 {[%emt 0:00:20]} 2. d4 {[%emt 0:00:00]} d5 {[%emt 0:01:43]} 3. e5 {[%emt 0:00:08]} c5 {[%emt 0:01:22]} 4. c3 {[%emt 0:00:05]} Nc6 {[%emt 0:01:23]} 5. Nf3 {[%emt 0:00:06]} Qb6 {[%emt 0:00:17]} 6. Be2 {[%emt 0:00:08]} Nge7 {[%emt 0:00:37]} 7. dxc5 {[%emt 0:00:30]} Qxc5 {[%emt 0:00:49]} 8. Be3 {[%emt 0:00:11]} Qa5 {[%emt 0:00:19] C02: French: Advance Variation} 9. O-O {[%emt 0:02:04]} Ng6 {[%emt 0:00:35]} 10. Bd4 {[%emt 0:02:12]} Be7 {[%emt 0:01:03]} 11. Re1 {[%emt 0:00:37]} O-O {[%emt 0:00:19]} 12. Bd3 $146 {[%emt 0:01:32]} ({Predecessor:} 12. g3 a6 13. Nbd2 b5 14. Bf1 Bb7 15. Nb3 Qc7 16. h4 Rfc8 17. Rc1 Bf8 18. Qd3 a5 19. h5 Nge7 20. Ng5 g6 21. hxg6 hxg6 22. g4 {1-0 (22) Abdul,M (2007)-Rana Pratap,S (1843) Dhaka 2018}) 12... Nxd4 {[%emt 0:02:05]} 13. cxd4 {[%emt 0:00:49]} Bd7 {[%emt 0:05:19]} 14. Nbd2 {[%emt 0:01:52]} Bb5 {[%emt 0:01:17]} 15. Bc2 {[%emt 0:04:33]} Rac8 {[%emt 0:03:09]} 16. a3 {[%emt 0:07:50]} Qa6 {[%emt 0:04:39]} 17. Nb1 {[%emt 0:07:50]} Nf4 {[%emt 0:02:37]} 18. Nc3 {[%emt 0:01:24]} Bd3 {[%emt 0:02:04]} 19. g3 {[%emt 0:05:09] [#]} Ne2+ $1 {[%emt 0:02:38]} 20. Rxe2 $1 {[%emt 0:05:41]} Rxc3 $1 {[%emt 0:00:17]} 21. Rd2 {[%emt 0:05:34]} Bxc2 {[%emt 0:02:11]} 22. Rxc2 {[%emt 0:00:06]} Rc6 {[%emt 0:00:27]} 23. Rxc6 {[%emt 0:01:36]} bxc6 $11 {[%emt 0:00:08]} 24. b4 {[%emt 0:01:44]} Rc8 {[%emt 0:00:44]} 25. Nd2 {[%emt 0:01:25]} f6 {[%emt 0:02:55]} 26. exf6 {[%emt 0:01:41]} Bxf6 {[%emt 0:00:08]} 27. Nb3 {[%emt 0:00:37]} Re8 {[%emt 0:00:47]} 28. f4 {[%emt 0:01:44]} Qb6 {[%emt 0:02:08]} 29. Kg2 {[%emt 0:02:57]} Qa6 {[%emt 0:00:28]} 30. Qf1 {[%emt 0:09:17]} (30. Qf3 $16) 30... Qa4 {[%emt 0:01:27]} 31. Qd3 {[%emt 0:00:36]} a6 {[%emt 0:02:43]} 32. Qc3 {[%emt 0:03:57]} Qb5 {[%emt 0:01:14]} 33. Re1 {[%emt 0:00:45]} Qc4 {[%emt 0:00:06]} 34. Qxc4 {[%emt 0:03:03]} dxc4 {[%emt 0:00:07]} 35. Na5 {[%emt 0:00:05]} Bxd4 {[%emt 0:00:33]} 36. Nxc4 {[%emt 0:00:44]} c5 {[%emt 0:00:34]} 37. Re4 {[%emt 0:01:57]} Kf8 {[%emt 0:02:48]} 38. a4 {[%emt 0:03:20]} Ke7 {[%emt 0:03:17]} 39. b5 {[%emt 0:05:58]} axb5 {[%emt 0:01:52]} 40. axb5 {[%emt 0:00:04]} Rb8 {[%emt 0:00:23]} 41. b6 {[%emt 0:30:38]} g6 {[%emt 0:30:25]} 42. Kf3 {[%emt 0:00:50]} Kf6 {[%emt 0:00:55]} 43. Re2 {[%emt 0:00:45]} Ra8 {[%emt 0:01:30]} 44. Re1 {[%emt 0:00:34]} Ke7 {[%emt 0:00:09]} 45. Rb1 {[%emt 0:00:57]} Kd7 {[%emt 0:00:08]} 46. Rb3 {[%emt 0:01:41]} Kc6 {[%emt 0:01:18]} 47. b7 {[%emt 0:00:59]} Rb8 {[%emt 0:00:08]} 48. Ke4 {[%emt 0:00:04]} Kc7 {[%emt 0:00:22]} 49. Na5 {[%emt 0:00:06]} Ba1 {[%emt 0:06:48]} 50. Rb5 {[%emt 0:02:23]} Bd4 {[%emt 0:01:26]} 51. g4 {[%emt 0:01:06]} h5 {[%emt 0:01:50]} 52. gxh5 {[%emt 0:00:57]} gxh5 {[%emt 0:00:08]} 53. Kd3 {[%emt 0:05:22]} h4 {[%emt 0:07:15]} 54. h3 {[%emt 0:00:14]} Bf2 {[%emt 0:07:13]} 55. Ke4 {[%emt 0:03:40]} Bd4 {[%emt 0:01:12]} 56. Kf3 {[%emt 0:01:51]} Bg1 {[%emt 0:03:31]} 57. Kg4 {[%emt 0:01:19]} Be3 {[%emt 0:00:48]} 58. Kf3 {[%emt 0:02:02]} Bd4 {[%emt 0:00:08]} 59. Ke4 {[%emt 0:00:30]} Bf2 {[%emt 0:09:56]} 60. Ke5 {[%emt 0:00:23]} Bg3 {[%emt 0:04:04]} 61. Rxc5+ {[%emt 0:00:47]} Kd7 {[%emt 0:00:22]} 62. Rb5 {[%emt 0:00:00]} Rf8 {[%emt 0:02:09]} 63. b8=N+ {[%emt 0:00:06]} Ke8 {[%emt 0:00:13]} 1/2-1/2

[Event "WCCC U10 2019"]
[Site "Weifang"]
[Date "2019.08.27"]
[Round "6.5"]
[White "Efimov, Leonid"]
[Black "Xie, Bryan"]
[Result "1-0"]
[ECO "D78"]
[WhiteElo "1773"]
[BlackElo "1696"]
[Annotator "NA"]
[PlyCount "121"]
[EventDate "2019.08.21"]
[EventType "swiss"]
[EventCountry "CHN"]
[SourceTitle "playchess.com"]
[Source "ChessBase"]
[SourceQuality "1"]
[TimeControl "40/5400+30:1800+30"]

1. Nf3 {[%emt 0:00:00]} d5 {[%emt 0:00:00]} 2. g3 {[%emt 0:00:00]} Nf6 {[%emt 0:00:00]} 3. Bg2 {[%emt 0:00:00]} g6 {[%emt 0:00:00]} 4. O-O {[%emt 0:00:27]} Bg7 {[%emt 0:00:03]} 5. d4 {[%emt 0:00:22]} O-O {[%emt 0:00:56]} 6. Nbd2 {[%emt 0:09:40]} Bf5 {[%emt 0:06:26]} 7. c4 {[%emt 0:04:35]} c6 {[%emt 0:03:30]} 8. Qb3 {[%emt 0:07:13]} Qc8 {[%emt 0:02:16]} 9. Ne5 {[%emt 0:11:26]} Nbd7 {[%emt 0:05:01]} 10. cxd5 {[%emt 0:08:17]} cxd5 {[%emt 0:00:27]} 11. Bxd5 {[%emt 0:05:22]} Nxd5 {[%emt 0:00:19]} 12. Qxd5 {[%emt 0:00:35]} Nxe5 {[%emt 0:00:28]} 13. dxe5 {[%emt 0:03:11]} Rd8 {[%emt 0:01:12]} 14. Qb5 {[%emt 0:03:26]} a6 {[%emt 0:03:19]} 15. Qb4 {[%emt 0:08:57]} Bxe5 {[%emt 0:01:48]} 16. Qxe7 {[%emt 0:02:22]} Re8 {[%emt 0:02:07]} 17. Qb4 {[%emt 0:01:57]} Bh3 {[%emt 0:06:54]} 18. Re1 {[%emt 0:01:43]} Qc6 {[%emt 0:03:00]} 19. Nf3 {[%emt 0:02:03]} Bd6 {[%emt 0:05:12]} 20. Qb3 {[%emt 0:07:19]} Rac8 {[%emt 0:08:33]} 21. Be3 {[%emt 0:03:02]} Qe4 {[%emt 0:07:34]} 22. Rad1 {[%emt 0:02:29]} Be6 {[%emt 0:01:56]} 23. Qd3 {[%emt 0:04:28]} Qxd3 {[%emt 0:00:19]} 24. Rxd3 {[%emt 0:01:20]} Bb4 {[%emt 0:02:20]} 25. Ra1 {[%emt 0:00:30]} Rc2 {[%emt 0:07:12]} 26. a3 {[%emt 0:00:43]} Bf8 {[%emt 0:02:16]} 27. Rd2 {[%emt 0:01:01]} Rxd2 {[%emt 0:01:12]} 28. Bxd2 {[%emt 0:00:47]} Bc4 {[%emt 0:02:17]} 29. e3 {[%emt 0:00:27]} Rd8 {[%emt 0:03:11]} 30. Bc3 {[%emt 0:00:35]} Be7 {[%emt 0:02:45]} 31. Nd2 {[%emt 0:00:37]} Bd3 {[%emt 0:02:03]} 32. Re1 {[%emt 0:02:18]} Rc8 {[%emt 0:00:19]} 33. e4 {[%emt 0:00:59]} Bxa3 {[%emt 0:00:17]} 34. Re3 {[%emt 0:00:42]} Rxc3 {[%emt 0:03:04]} 35. bxc3 {[%emt 0:00:16]} Bc2 {[%emt 0:00:49]} 36. Kf1 {[%emt 0:03:18]} Bc5 {[%emt 0:01:24]} 37. Re1 {[%emt 0:00:26]} Bd3+ {[%emt 0:00:30]} 38. Kg2 {[%emt 0:00:34]} b6 {[%emt 0:05:23]} 39. Ra1 {[%emt 0:01:33]} a5 {[%emt 0:00:30]} 40. Nb3 {[%emt 0:00:55]} Be7 {[%emt 0:01:24]} 41. Kf3 {[%emt 0:30:14]} Kf8 {[%emt 0:30:49]} 42. Ke3 {[%emt 0:02:37]} Bb5 {[%emt 0:00:51]} 43. Nd4 {[%emt 0:00:39]} Bc5 {[%emt 0:00:13]} 44. Kd2 {[%emt 0:01:09]} Ba6 {[%emt 0:02:31]} 45. f3 {[%emt 0:00:00]} Ke8 {[%emt 0:00:00]} 46. Nc6 {[%emt 0:00:00]} Bb7 {[%emt 0:00:00]} 47. Ne5 {[%emt 0:00:00]} f6 {[%emt 0:00:00]} 48. Nd3 {[%emt 0:00:00]} Be7 {[%emt 0:00:00]} 49. Rb1 {[%emt 0:00:00]} Bd8 {[%emt 0:00:00]} 50. Nc5 {[%emt 0:00:00]} Bc6 {[%emt 0:00:00]} 51. Ne6 {[%emt 0:00:00]} b5 {[%emt 0:00:00]} 52. Nd4 {[%emt 0:00:00]} Kd7 {[%emt 0:00:00]} 53. Nxb5 {[%emt 0:00:00]} f5 {[%emt 0:00:00]} 54. Nd4 {[%emt 0:00:00]} fxe4 {[%emt 0:00:00]} 55. Nxc6 {[%emt 0:00:00]} Kxc6 {[%emt 0:00:00]} 56. fxe4 {[%emt 0:00:00]} Bf6 {[%emt 0:00:00]} 57. Kd3 {[%emt 0:00:00]} h5 {[%emt 0:00:00]} 58. Kc4 {[%emt 0:00:00]} Be5 {[%emt 0:00:00]} 59. Rb5 {[%emt 0:00:00]} Bxc3 {[%emt 0:00:00]} 60. Rc5+ {[%emt 0:00:00]} Kb6 {[%emt 0:00:00]} 61. Rg5 {[%emt 0:01:18]} 1-0

[Event "WCCC U10 2019"]
[Site "Weifang"]
[Date "2019.08.27"]
[Round "6.6"]
[White "Sodbilegt, Naranbold"]
[Black "Bharadia Yash"]
[Result "1-0"]
[ECO "B99"]
[WhiteElo "1458"]
[BlackElo "1963"]
[Annotator "NA RC"]
[PlyCount "63"]
[EventDate "2019.08.21"]
[EventType "swiss"]
[EventCountry "CHN"]
[SourceTitle "playchess.com"]
[Source "ChessBase"]
[SourceQuality "1"]
[TimeControl "40/5400+30:1800+30"]

1. e4 {[%emt 0:00:00]} c5 {[%emt 0:00:00]} 2. Nf3 {[%emt 0:00:00]} d6 {[%emt 0:00:00]} 3. d4 {[%emt 0:00:00]} cxd4 {[%emt 0:00:04]} 4. Nxd4 {[%emt 0:00:00]} Nf6 {[%emt 0:00:12]} 5. Nc3 {[%emt 0:00:08]} a6 {[%emt 0:00:08]} 6. Bg5 {[%emt 0:00:22]} e6 {[%emt 0:00:19]} 7. f4 {[%emt 0:00:13]} Be7 {[%emt 0:00:14]} 8. Qf3 {[%emt 0:00:33]} Qc7 {[%emt 0:00:16]} 9. O-O-O {[%emt 0:00:31]} Nbd7 {[%emt 0:00:14]} 10. g4 {[%emt 0:01:04]} b5 {[%emt 0:02:27]} 11. Bxf6 {[%emt 0:01:36]} Nxf6 {[%emt 0:01:06]} 12. g5 {[%emt 0:00:22]} Nd7 {[%emt 0:00:43]} 13. f5 {[%emt 0:01:47]} Nc5 {[%emt 0:02:33]} 14. f6 {[%emt 0:01:22]} gxf6 {[%emt 0:01:10]} 15. gxf6 {[%emt 0:00:25]} Bf8 $1 {[%emt 0:00:19]} 16. Rg1 {[%emt 0:05:33]} h5 {[%emt 0:02:50] [#]} 17. Kb1 $1 {[%emt 0:03:24]} b4 {[%emt 0:19:28]} 18. Nd5 {[%emt 0:03:41]} exd5 {[%emt 0:14:42]} 19. exd5 {[%emt 0:00:20]} Nd7 {[%emt 0:05:54] [#]} (19... Bg4 $16 20. Re1+ Kd8) 20. Nc6 $1 {[%emt 0:05:08]} Bb7 {[%emt 0:06:23]} 21. Qe4+ {[%emt 0:11:05]} Ne5 {[%emt 0:01:10]} 22. Nxb4 {[%emt 0:03:03]} a5 {[%emt 0:13:18]} 23. Bb5+ {[%emt 0:02:02]} Kd8 {[%emt 0:00:47]} 24. Nc6+ {[%emt 0:09:43]} Bxc6 {[%emt 0:14:50]} 25. dxc6 $18 {[%emt 0:01:26]} Ke8 {[%emt 0:09:23]} 26. Rg5 {[%emt 0:01:48]} Be7 {[%emt 0:03:52]} 27. fxe7 {[%emt 0:00:29]} Qb6 {[%emt 0:00:33]} 28. c7+ {[%emt 0:01:11]} Kxe7 {[%emt 0:00:15]} 29. Rxe5+ {[%emt 0:00:16]} dxe5 {[%emt 0:00:25]} 30. Qxe5+ {[%emt 0:00:14]} Qe6 {[%emt 0:00:30]} 31. Rd7+ {[%emt 0:00:10]} Kf8 {[%emt 0:00:42]} 32. Qxh8# {[%emt 0:00:09]} 1-0

[Event "WCCC U10 2019"]
[Site "Weifang"]
[Date "2019.08.27"]
[Round "6.8"]
[White "Jiang, Qiyu"]
[Black "Lu, Miaoyi"]
[Result "1/2-1/2"]
[ECO "A08"]
[WhiteElo "1593"]
[BlackElo "1950"]
[Annotator "NA RC"]
[PlyCount "88"]
[EventDate "2019.08.21"]
[EventType "swiss"]
[EventCountry "CHN"]
[SourceTitle "playchess.com"]
[Source "ChessBase"]
[SourceQuality "1"]
[TimeControl "40/5400+30:1800+30"]

1. Nf3 {[%emt 0:00:00]} d5 {[%emt 0:00:00]} 2. g3 {[%emt 0:00:00]} c5 {[%emt 0:00:00]} 3. Bg2 {[%emt 0:00:00]} Nf6 {[%emt 0:00:00]} 4. O-O {[%emt 0:00:00]} g6 {[%emt 0:00:00]} 5. c4 {[%emt 0:00:45]} d4 {[%emt 0:00:00]} 6. d3 {[%emt 0:00:19]} Nc6 {[%emt 0:00:20]} 7. Bf4 {[%emt 0:04:46]} Nh5 {[%emt 0:02:59]} 8. Bd2 {[%emt 0:00:50]} Bg7 {[%emt 0:00:57]} 9. Na3 {[%emt 0:01:07]} O-O {[%emt 0:01:11]} 10. Nc2 {[%emt 0:00:45]} a5 {[%emt 0:05:51]} 11. Rb1 {[%emt 0:04:49]} Qc7 {[%emt 0:07:04]} 12. b3 {[%emt 0:03:20]} b6 {[%emt 0:01:32]} 13. a3 {[%emt 0:01:36]} Bb7 {[%emt 0:01:27]} 14. b4 {[%emt 0:03:09]} axb4 {[%emt 0:05:58]} 15. axb4 {[%emt 0:00:04]} Rfb8 {[%emt 0:02:39]} 16. Qc1 {[%emt 0:13:16]} Ne5 {[%emt 0:05:56]} 17. Nxe5 {[%emt 0:02:41]} Bxg2 {[%emt 0:01:47]} 18. Kxg2 $11 {[%emt 0:00:03]} Bxe5 {[%emt 0:00:42]} 19. Na3 {[%emt 0:11:24]} Bg7 {[%emt 0:13:32]} 20. Nb5 {[%emt 0:01:28]} Qc6+ {[%emt 0:00:22]} 21. Kg1 {[%emt 0:00:30]} e5 {[%emt 0:05:06]} 22. Qc2 {[%emt 0:04:06]} Nf6 {[%emt 0:05:25]} 23. bxc5 {[%emt 0:09:01]} bxc5 {[%emt 0:00:27]} 24. Ra1 {[%emt 0:03:06]} Ne8 {[%emt 0:04:29]} 25. Rfb1 {[%emt 0:05:20]} Nd6 {[%emt 0:02:39]} 26. Rxa8 {[%emt 0:00:52]} Rxa8 {[%emt 0:00:17]} 27. Nxd6 {[%emt 0:05:36]} Qxd6 {[%emt 0:00:03]} 28. Qb3 {[%emt 0:01:43]} h6 {[%emt 0:08:31]} 29. Qb7 {[%emt 0:10:19]} Ra2 {[%emt 0:05:07]} 30. Rb2 {[%emt 0:01:07]} Rxb2 {[%emt 0:02:00]} 31. Qxb2 {[%emt 0:00:04]} Qa6 {[%emt 0:00:46]} 32. Qb8+ {[%emt 0:05:27]} Kh7 {[%emt 0:00:06]} 33. Qb5 {[%emt 0:03:13]} Qa1+ {[%emt 0:01:35]} 34. Kg2 {[%emt 0:00:05]} Qd1 {[%emt 0:00:19]} 35. Ba5 {[%emt 0:00:34]} Qxe2 {[%emt 0:00:19]} 36. Qxc5 {[%emt 0:00:16]} Qxd3 {[%emt 0:00:18]} 37. Qd5 {[%emt 0:00:47]} f5 {[%emt 0:09:13]} 38. c5 {[%emt 0:03:23]} e4 {[%emt 0:03:55]} 39. c6 {[%emt 0:00:50]} Qf3+ {[%emt 0:02:55]} 40. Kg1 {[%emt 0:00:25]} Qd1+ {[%emt 0:01:37]} 41. Kg2 {[%emt 0:30:05]} e3 {[%emt 0:10:12]} 42. fxe3 {[%emt 0:00:00]} Qe2+ {[%emt 0:00:16]} 43. Kh3 {[%emt 0:00:00]} Qg4+ {[%emt 0:08:11]} 44. Kg2 {[%emt 0:00:00]} Qe2+ {[%emt 0:02:05]} 1/2-1/2

[Event "WCCC U10 2019"]
[Site "Weifang"]
[Date "2019.08.27"]
[Round "6.9"]
[White "Sowinski, Pawel"]
[Black "Meng, Yihan"]
[Result "0-1"]
[ECO "B13"]
[WhiteElo "1582"]
[BlackElo "1793"]
[Annotator "NA"]
[PlyCount "140"]
[EventDate "2019.08.21"]
[EventType "swiss"]
[EventCountry "CHN"]
[SourceTitle "playchess.com"]
[Source "ChessBase"]
[SourceQuality "1"]
[TimeControl "40/5400+30:1800+30"]

1. e4 {[%emt 0:00:00]} c6 {[%emt 0:00:00]} 2. d4 {[%emt 0:00:00]} d5 {[%emt 0:00:01]} 3. exd5 {[%emt 0:00:45]} cxd5 {[%emt 0:00:34]} 4. Bd3 {[%emt 0:03:00]} Nc6 {[%emt 0:01:28]} 5. Nf3 {[%emt 0:02:25]} Bg4 {[%emt 0:01:32]} 6. c3 {[%emt 0:01:38]} e6 {[%emt 0:01:36]} 7. h3 {[%emt 0:00:49]} Bh5 {[%emt 0:00:42]} 8. Nbd2 {[%emt 0:05:35]} Bd6 {[%emt 0:02:12]} 9. Qa4 {[%emt 0:02:32]} Nge7 {[%emt 0:02:32]} 10. O-O {[%emt 0:01:24]} O-O {[%emt 0:01:28]} 11. b4 {[%emt 0:04:01]} Bg6 {[%emt 0:02:36]} 12. Bxg6 {[%emt 0:02:56]} Nxg6 {[%emt 0:01:28]} 13. Nb3 {[%emt 0:01:15]} Nce7 {[%emt 0:06:27]} 14. Nc5 {[%emt 0:03:34]} b6 {[%emt 0:00:27]} 15. Nd3 {[%emt 0:09:41]} Bc7 {[%emt 0:01:49]} 16. Re1 {[%emt 0:04:36]} Nf5 {[%emt 0:01:12]} 17. Qb3 {[%emt 0:10:54]} Qd6 {[%emt 0:02:32]} 18. b5 {[%emt 0:01:14]} Nfh4 {[%emt 0:03:31]} 19. Nfe5 {[%emt 0:01:12]} Rfc8 {[%emt 0:03:19]} 20. f4 {[%emt 0:14:44]} a6 {[%emt 0:04:36]} 21. bxa6 {[%emt 0:02:54]} Rxa6 {[%emt 0:00:41]} 22. a4 {[%emt 0:06:31]} Qd8 {[%emt 0:03:18]} 23. Rf1 {[%emt 0:06:11]} Bxe5 {[%emt 0:01:34]} 24. fxe5 {[%emt 0:03:01]} Nf5 {[%emt 0:00:58]} 25. Kh2 {[%emt 0:07:52]} Qc7 {[%emt 0:01:59]} 26. Bd2 {[%emt 0:01:16]} Qc4 {[%emt 0:02:43]} 27. Qxc4 {[%emt 0:00:44]} Rxc4 {[%emt 0:00:14]} 28. a5 {[%emt 0:00:21]} Rxa5 {[%emt 0:00:53]} 29. Rxa5 {[%emt 0:00:56]} bxa5 {[%emt 0:00:03]} 30. Nc5 {[%emt 0:00:36]} Nxe5 {[%emt 0:03:56]} 31. Rb1 {[%emt 0:02:05]} h6 {[%emt 0:00:28]} 32. Ra1 {[%emt 0:00:00]} Nc6 {[%emt 0:00:00]} 33. Nb7 {[%emt 0:00:00]} Nce7 {[%emt 0:00:00]} 34. g4 {[%emt 0:00:00]} Nh4 {[%emt 0:00:00]} 35. Kg3 {[%emt 0:00:00]} g5 {[%emt 0:00:00]} 36. Rxa5 {[%emt 0:00:00]} Rc7 {[%emt 0:00:00]} 37. Nc5 {[%emt 0:00:00]} Kh7 {[%emt 0:00:00]} 38. Ra6 {[%emt 0:00:00]} Nc8 {[%emt 0:00:00]} 39. Kf2 {[%emt 0:00:00]} Ng6 {[%emt 0:00:00]} 40. Ke2 {[%emt 0:00:00]} Ra7 {[%emt 0:00:00]} 41. Rxa7 {[%emt 0:26:03]} Nxa7 {[%emt 0:13:15]} 42. Nd3 {[%emt 0:03:25]} Nb5 {[%emt 0:00:24]} 43. Nb2 {[%emt 0:00:27]} Kg8 {[%emt 0:00:37]} 44. Kd3 {[%emt 0:00:20]} Nd6 {[%emt 0:01:25]} 45. c4 {[%emt 0:01:35]} dxc4+ {[%emt 0:00:15]} 46. Nxc4 {[%emt 0:00:25]} Nxc4 {[%emt 0:00:24]} 47. Kxc4 {[%emt 0:00:07]} Ne7 {[%emt 0:00:27]} 48. Kc5 {[%emt 0:00:31]} Nd5 {[%emt 0:00:25]} 49. Kd6 {[%emt 0:00:29]} Kg7 {[%emt 0:00:16]} 50. Ke5 {[%emt 0:00:28]} Kg6 {[%emt 0:00:28]} 51. Bc1 {[%emt 0:00:27]} Nb4 {[%emt 0:08:24]} 52. Be3 {[%emt 0:02:12]} h5 {[%emt 0:03:30]} 53. Bd2 {[%emt 0:03:28]} Nd3+ {[%emt 0:02:09]} 54. Kd6 {[%emt 0:01:06]} h4 {[%emt 0:01:02]} 55. d5 {[%emt 0:01:14]} exd5 {[%emt 0:00:11]} 56. Kxd5 {[%emt 0:00:08]} Nf2 {[%emt 0:00:26]} 57. Be3 {[%emt 0:00:24]} Nxh3 {[%emt 0:00:35]} 58. Ke4 {[%emt 0:00:10]} Nf4 {[%emt 0:00:48]} 59. Bxf4 {[%emt 0:00:22]} gxf4 {[%emt 0:00:15]} 60. Kxf4 {[%emt 0:00:06]} f6 {[%emt 0:00:34]} 61. Ke3 {[%emt 0:00:27]} Kg5 {[%emt 0:00:36]} 62. Kf3 {[%emt 0:00:06]} h3 {[%emt 0:00:03]} 63. Kg3 {[%emt 0:00:06]} h2 {[%emt 0:00:06]} 64. Kxh2 {[%emt 0:00:03]} Kxg4 {[%emt 0:00:07]} 65. Kg2 {[%emt 0:00:05]} Kf4 {[%emt 0:00:06]} 66. Kf2 {[%emt 0:00:10]} f5 {[%emt 0:00:09]} 67. Ke2 {[%emt 0:01:24]} Kg3 {[%emt 0:00:04]} 68. Kf1 {[%emt 0:00:08]} f4 {[%emt 0:00:14]} 69. Kg1 {[%emt 0:00:09]} f3 {[%emt 0:00:03]} 70. Kh1 {[%emt 0:00:15]} Kf2 {[%emt 0:00:32]} 0-1